fUSD/lending_fUSD_20240627
["ID","MTS","AMOUNT","RATE_DAILY","PERIOD"]
[330487224,1719497069258,-654.17,0.00043561,120]
[330487225,1719497069296,-1812.25,0.00043561,120]
[330487226,1719497069335,-856.57,0.00043561,120]
[330487227,1719497069377,-500.0,0.00043561,120]
[330487228,1719497069415,-1363.99,0.00043561,120]
[330487229,1719497069460,-19441.84,0.00043561,120]
[330487230,1719497069500,-500.0,0.00043561,120]
[330487231,1719497069539,-546.52,0.00043561,120]
[330487232,1719497069579,-638.67,0.00043561,120]
[330487233,1719497069619,-500.0,0.00043561,120]
[330487234,1719497069658,-2170.54,0.00043561,120]
[330487235,1719497069698,-699.36,0.00043561,120]
[330487236,1719497069737,-1692.93,0.00043561,120]
[330487237,1719497069776,-850.38,0.00043561,120]
[330487238,1719497069816,-1012.43,0.00043561,120]
[330487239,1719497069855,-500.0,0.00043561,120]
[330487240,1719497069898,-957.1,0.00043561,120]
[330487241,1719497069935,-500.0,0.00043561,120]
[330487242,1719497069973,-684.84,0.00043561,120]
[330487243,1719497070012,-1477.52,0.00043561,120]
[330487244,1719497070053,-1185.16,0.00043561,120]
[330487245,1719497070093,-1964.51,0.00043561,120]
[330487246,1719497070130,-2853.4,0.00043561,120]
[330487247,1719497070170,-500.0,0.00043561,120]
[330487248,1719497070207,-651.7,0.00043561,120]
[330487249,1719497070243,-1314.05,0.00043561,120]
[330487250,1719497070282,-1991.76,0.00043561,120]
[330487251,1719497070318,-2263.41,0.00043561,120]
[330487252,1719497070355,-1046.1,0.00043561,120]
[330487253,1719497070391,-2133.84,0.00043561,120]
[330487254,1719497070431,-1786.67,0.00043561,120]
[330487255,1719497070467,-500.0,0.00043561,120]
[330487256,1719497070503,-601.36754125,0.00043561,120]
[330487257,1719497070542,-1355.15,0.00043561,120]
[330487258,1719497070579,-500.0,0.00043561,120]
[330487259,1719497070616,-500.0,0.00043561,120]
[330487260,1719497070654,-1300.35,0.00043561,120]
[330487261,1719497070691,-1009.3,0.00043561,120]
[330487262,1719497070730,-2192.12,0.00043561,120]
[330487263,1719497070769,-875.48,0.00043561,120]
[330487264,1719497070807,-523.85,0.00043561,120]
[330487265,1719497070845,-1038.16,0.00043561,120]
[330487266,1719497070882,-693.05,0.00043561,120]
[330487267,1719497070921,-1746.62,0.00043561,120]
[330487268,1719497070962,-810.43,0.00043561,120]
[330487269,1719497071000,-500.0,0.00043561,120]
[330487270,1719497071040,-1661.97,0.00043561,120]
[330487271,1719497071078,-500.0,0.00043561,120]
[330487272,1719497071114,-500.0,0.00043561,120]
[330487273,1719497071152,-1964.15,0.00043561,120]
[330487274,1719497071188,-164.89558443,0.00043561,120]
[330487275,1719497071226,-2396.8,0.00043561,120]
[330487276,1719497071264,-500.0,0.00043561,120]
[330487277,1719497071300,-1474.09,0.00043561,120]
[330487278,1719497071337,-500.0,0.00043561,120]
[330487279,1719497071638,-964.13,0.00043561,120]
[330487280,1719497071679,-500.0,0.00043561,120]
[330487281,1719497071718,-542.49,0.00043561,120]
[330487282,1719497071757,-500.0,0.00043561,120]
[330487283,1719497071794,-500.0,0.00043561,120]
[330487284,1719497071830,-500.0,0.00043561,120]
[330487285,1719497071866,-1126.1,0.00043561,120]
[330487286,1719497071902,-2397.13,0.00043561,120]
[330487287,1719497071947,-846.48,0.00043561,120]
[330487288,1719497071985,-1161.97,0.00043561,120]
[330487289,1719497072024,-3016.28,0.00043561,120]
[330487290,1719497072061,-500.0,0.00043561,120]
[330487291,1719497072098,-1131.45,0.00043561,120]
[330487292,1719497072135,-500.0,0.00043561,120]
[330487293,1719497072175,-878.99,0.00043561,120]
[330487294,1719497072213,-2460.63,0.00043561,120]
[330487295,1719497072251,-678.55,0.00043561,120]
[330487296,1719497072287,-1063.16,0.00043561,120]
[330487297,1719497072323,-1455.12,0.00043561,120]
[330487298,1719497072360,-1464.66,0.00043561,120]
[330487299,1719497072399,-551.44,0.00043561,120]
[330487300,1719497072440,-1118.99,0.00043561,120]
[330487301,1719497072477,-935.5,0.00043561,120]
[330487302,1719497072514,-500.0,0.00043561,120]
[330487303,1719497072550,-3145.68,0.00043561,120]
[330487304,1719497072586,-1051.23,0.00043561,120]
[330487305,1719497072622,-887.03,0.00043561,120]
[330487306,1719497072661,-500.0,0.00043561,120]
[330487307,1719497072697,-897.94,0.00043561,120]
[330487308,1719497072734,-1804.08,0.00043561,120]
[330487309,1719497072771,-500.0,0.00043561,120]
[330487310,1719497072808,-500.0,0.00043561,120]
[330487311,1719497072844,-303.77122342,0.00043561,120]
[330487312,1719497072881,-1451.61,0.00043561,120]
[330487313,1719497072920,-1460.77,0.00043561,120]
[330487314,1719497072963,-500.0,0.00043561,120]
[330487315,1719497073003,-633.41,0.00043561,120]
[330487316,1719497073040,-500.0,0.00043561,120]
[330487317,1719497073077,-1087.52,0.00043561,120]
[330487318,1719497073115,-632.64,0.00043561,120]
[330487319,1719497073155,-500.0,0.00043561,120]
[330487320,1719497073194,-745.16,0.00043561,120]
[330487321,1719497073231,-500.0,0.00043561,120]
[330487322,1719497073268,-1150.27,0.00043561,120]
[330487323,1719497073305,-500.0,0.00043561,120]
[330487324,1719497073342,-500.0,0.00043561,120]
[330487325,1719497073379,-500.0,0.00043561,120]
[330487326,1719497073415,-879.02,0.00043561,120]
[330487327,1719497073453,-573.61,0.00043561,120]
[330487328,1719497073492,-500.0,0.00043561,120]
[330487329,1719497073531,-500.0,0.00043561,120]
[330487330,1719497073570,-1282.54,0.00043561,120]
[330487331,1719497073609,-2799.33,0.00043561,120]
[330487332,1719497073649,-576.73,0.00043561,120]
[330487333,1719497073688,-1679.01,0.00043561,120]
[330487334,1719497073730,-500.0,0.00043561,120]
[330487335,1719497073770,-514.43,0.00043561,120]
[330487336,1719497073810,-1534.52,0.00043561,120]
[330487337,1719497073851,-2380.25,0.00043561,120]
[330487338,1719497073889,-1521.39,0.00043561,120]
[330487339,1719497073935,-599.8,0.00043561,120]
[330487340,1719497073973,-500.0,0.00043561,120]
[330487341,1719497074013,-500.0,0.00043561,120]
[330487342,1719497074052,-800.79,0.00043561,120]
[330487343,1719497074091,-500.0,0.00043561,120]
[330487344,1719497074129,-799.03,0.00043561,120]
[330487345,1719497074170,-2226.87,0.00043561,120]
[330487346,1719497074206,-964.65,0.00043561,120]
[330487347,1719497074243,-500.0,0.00043561,120]
[330487348,1719497074283,-500.0,0.00043561,120]
[330487349,1719497074320,-500.0,0.00043561,120]
[330487350,1719497074359,-500.0,0.00043561,120]
[330487351,1719497074401,-1111.0,0.00043561,120]
[330487352,1719497074440,-500.0,0.00043561,120]
[330487353,1719497074480,-1575.4,0.00043561,120]
[330487354,1719497074518,-577.0,0.00043561,120]
[330487355,1719497074555,-500.0,0.00043561,120]
[330487356,1719497074591,-500.0,0.00043561,120]
[330487357,1719497074631,-1369.94,0.00043561,120]
[330487358,1719497074672,-1187.55,0.00043561,120]
[330487359,1719497074710,-656.81,0.00043561,120]
[330487360,1719497074751,-500.0,0.00043561,120]
[330487361,1719497074788,-1223.86,0.00043561,120]
[330487362,1719497074827,-500.0,0.00043561,120]
[330487363,1719497074864,-628.05,0.00043561,120]
[330487364,1719497074904,-500.0,0.00043561,120]
[330487365,1719497074944,-646.81,0.00043561,120]
[330487366,1719497074983,-1015.94,0.00043561,120]
[330487367,1719497075024,-1058.89,0.00043561,120]
[330487368,1719497075062,-500.0,0.00043561,120]
[330487369,1719497075100,-1301.33,0.00043561,120]
[330487370,1719497075138,-500.0,0.00043561,120]
[330487371,1719497075178,-1491.13,0.00043561,120]
[330487372,1719497075215,-797.49,0.00043561,120]
[330487373,1719497075253,-241.14,0.00043561,120]
[330487374,1719497075291,-2278.53,0.00043561,120]
[330487375,1719497075331,-698.07,0.00043561,120]
[330487376,1719497075369,-500.0,0.00043561,120]
[330487377,1719497075407,-563.79,0.00043561,120]
[330487378,1719497075445,-500.0,0.00043561,120]
[330487379,1719497075483,-1816.67,0.00043561,120]
[330487380,1719497075521,-913.36,0.00043561,120]
[330487381,1719497075560,-625.91,0.00043561,120]
[330487382,1719497075599,-1447.05,0.00043561,120]
[330487383,1719497075638,-500.0,0.00043561,120]
[330487384,1719497075901,-1972.34,0.00043561,120]
[330487385,1719497075940,-1149.7,0.00043561,120]
[330487386,1719497075980,-771.15,0.00043561,120]
[330487387,1719497076020,-560.77,0.00043561,120]
[330487388,1719497076061,-500.0,0.00043561,120]
[330487389,1719497076100,-2213.64,0.00043561,120]
[330487390,1719497076138,-2081.72,0.00043561,120]
[330487391,1719497076179,-727.3,0.00043561,120]
[330487392,1719497076218,-1918.05,0.00043561,120]
[330487393,1719497076256,-988.94,0.00043561,120]
[330487394,1719497076294,-1584.96,0.00043561,120]
[330487395,1719497076332,-500.0,0.00043561,120]
[330487396,1719497076370,-665.35,0.00043561,120]
[330487397,1719497076408,-500.0,0.00043561,120]
[330487398,1719497076446,-2833.53,0.00043561,120]
[330487399,1719497076484,-1471.69,0.00043561,120]
[330487400,1719497076521,-708.98,0.00043561,120]
[330487401,1719497076560,-2941.06,0.00043561,120]
[330487402,1719497076597,-500.0,0.00043561,120]
[330487403,1719497076635,-611.62,0.00043561,120]
[330487404,1719497076676,-500.0,0.00043561,120]
[330487405,1719497076716,-500.0,0.00043561,120]
[330487406,1719497076757,-500.0,0.00043561,120]
[330487407,1719497076797,-3075.32,0.00043561,120]
[330487408,1719497076834,-1643.58,0.00043561,120]
[330487409,1719497076874,-500.0,0.00043561,120]
[330487410,1719497076913,-2030.67,0.00043561,120]
[330487411,1719497076957,-500.0,0.00043561,120]
[330487412,1719497076995,-500.0,0.00043561,120]
[330487413,1719497077032,-1077.75,0.00043561,120]
[330487414,1719497077069,-500.0,0.00043561,120]
[330487415,1719497077108,-1868.27,0.00043561,120]
[330487416,1719497077151,-1413.71,0.00043561,120]
[330487417,1719497077189,-1022.95,0.00043561,120]
[330487418,1719497077227,-500.0,0.00043561,120]
[330487419,1719497077266,-1067.78,0.00043561,120]
[330487420,1719497077304,-500.0,0.00043561,120]
[330487421,1719497077341,-652.71,0.00043561,120]
[330487422,1719497077378,-1617.44,0.00043561,120]
[330487423,1719497077414,-629.64,0.00043561,120]
[330487424,1719497077452,-500.0,0.00043561,120]
[330487425,1719497077489,-1019.69,0.00043561,120]
[330487426,1719497077527,-605.75,0.00043561,120]
[330487427,1719497077564,-1344.32,0.00043561,120]
[330487428,1719497077602,-3788.91,0.00043561,120]
[330487429,1719497077640,-500.0,0.00043561,120]
[330487430,1719497077681,-500.0,0.00043561,120]
[330487431,1719497077720,-500.0,0.00043561,120]
[330487432,1719497077758,-500.0,0.00043561,120]
[330487433,1719497077796,-1300.92,0.00043561,120]
[330487434,1719497077833,-500.0,0.00043561,120]
[330487435,1719497077871,-500.0,0.00043561,120]
[330487436,1719497077910,-500.0,0.00043561,120]
[330487437,1719497077948,-650.82,0.00043561,120]
[330487438,1719497077985,-1197.65,0.00043561,120]
[330487439,1719497078023,-1808.97,0.00043561,120]
[330487440,1719497078060,-510.30664267,0.00043561,120]
[330487441,1719497078100,-500.0,0.00043561,120]
[330487442,1719497078142,-909.02,0.00043561,120]
[330487443,1719497078183,-1016.06,0.00043561,120]
[330487444,1719497078222,-500.0,0.00043561,120]
[330487445,1719497078260,-3436.04,0.00043561,120]
[330487446,1719497078298,-431.48277207,0.00043561,120]
[330487447,1719497078336,-1339.65,0.00043561,120]
[330487448,1719497078374,-500.0,0.00043561,120]
[330487449,1719497078415,-1073.5,0.00043561,120]
[330487450,1719497078458,-500.0,0.00043561,120]
[330487451,1719497078499,-1204.81,0.00043561,120]
[330487452,1719497078539,-500.0,0.00043561,120]
[330487453,1719497078579,-500.0,0.00043561,120]
[330487454,1719497078618,-674.08,0.00043561,120]
[330487455,1719497078658,-1983.55,0.00043561,120]
[330487456,1719497078699,-500.0,0.00043561,120]
[330487457,1719497078743,-571.76,0.00043561,120]
[330487458,1719497078783,-1022.12,0.00043561,120]
[330487459,1719497078823,-500.0,0.00043561,120]
[330487460,1719497078862,-1840.96,0.00043561,120]
[330487461,1719497078900,-602.24,0.00043561,120]
[330487462,1719497078944,-546.26,0.00043561,120]
[330487463,1719497078983,-730.78,0.00043561,120]
[330487464,1719497079023,-1154.3,0.00043561,120]
[330487465,1719497079061,-1018.7,0.00043561,120]
[330487466,1719497079100,-500.0,0.00043561,120]
[330487467,1719497079136,-500.0,0.00043561,120]
[330487468,1719497079173,-500.0,0.00043561,120]
[330487469,1719497079212,-1244.97,0.00043561,120]
[330487470,1719497079252,-500.0,0.00043561,120]
[330487471,1719497079291,-514.26072023,0.00043561,120]
[330487472,1719497079328,-683.32,0.00043561,120]
[330487473,1719497079367,-1425.92,0.00043561,120]
[330487474,1719497079403,-500.0,0.00043561,120]
[330487475,1719497079446,-500.0,0.00043561,120]
[330487476,1719497079486,-2917.68,0.00043561,120]
[330487477,1719497079527,-521.76,0.00043561,120]
[330487478,1719497079567,-2035.08,0.00043561,120]
[330487479,1719497079608,-2451.95,0.00043561,120]
[330487480,1719497079649,-1475.73,0.00043561,120]
[330487481,1719497079692,-1607.34,0.00043561,120]
[330487482,1719497079734,-733.85,0.00043561,120]
[330487483,1719497079775,-2066.29,0.00043561,120]
[330487484,1719497079813,-586.91563962,0.00043561,120]
[330487485,1719497079852,-500.0,0.00043561,120]
[330487486,1719497079892,-500.0,0.00043561,120]
[330487487,1719497079934,-2303.08,0.00043561,120]
[330487488,1719497079973,-1448.08,0.00043561,120]
[330487489,1719497080244,-500.0,0.00043561,120]
[330487490,1719497080285,-924.61,0.00043561,120]
[330487491,1719497080326,-1189.87,0.00043561,120]
[330487492,1719497080363,-500.0,0.00043561,120]
[330487493,1719497080405,-500.0,0.00043561,120]
[330487494,1719497080442,-500.0,0.00043561,120]
[330487495,1719497080479,-500.0,0.00043561,120]
[330487496,1719497080519,-1504.44,0.00043561,120]
[330487497,1719497080557,-862.9,0.00043561,120]
[330487498,1719497080596,-1681.69,0.00043561,120]
[330487499,1719497080635,-930.25,0.00043561,120]
[330487500,1719497080675,-500.0,0.00043561,120]
[330487501,1719497080714,-1083.35,0.00043561,120]
[330487502,1719497080757,-849.63,0.00043561,120]
[330487503,1719497080796,-362.08,0.00043561,120]
[330487504,1719497080833,-913.67,0.00043561,120]
[330487505,1719497080871,-715.07,0.00043561,120]
[330487506,1719497080908,-1339.35,0.00043561,120]
[330487507,1719497080945,-1620.7,0.00043561,120]
[330487508,1719497080982,-258.94745744,0.00043561,120]
[330487509,1719497081021,-500.0,0.00043561,120]
[330487510,1719497081060,-584.67,0.00043561,120]
[330487511,1719497081100,-1781.42,0.00043561,120]
[330487512,1719497081138,-1729.39,0.00043561,120]
[330487513,1719497081175,-842.52,0.00043561,120]
[330487514,1719497081213,-500.0,0.00043561,120]
[330487515,1719497081251,-641.74,0.00043561,120]
[330487516,1719497081290,-839.86,0.00043561,120]
[330487517,1719497081333,-1743.97,0.00043561,120]
[330487518,1719497081377,-1424.16,0.00043561,120]
[330487519,1719497081416,-500.0,0.00043561,120]
[330487520,1719497081453,-509.75,0.00043561,120]
[330487521,1719497081493,-500.0,0.00043561,120]
[330487522,1719497081533,-614.25,0.00043561,120]
[330487523,1719497081573,-500.0,0.00043561,120]
[330487524,1719497081613,-750.5,0.00043561,120]
[330487525,1719497081652,-500.0,0.00043561,120]
[330487526,1719497081694,-1191.55,0.00043561,120]
[330487527,1719497081737,-636.18,0.00043561,120]
[330487528,1719497081779,-1921.75,0.00043561,120]
[330487529,1719497081822,-603.39,0.00043561,120]
[330487530,1719497081862,-500.0,0.00043561,120]
[330487531,1719497081905,-707.69,0.00043561,120]
[330487532,1719497081950,-589.7,0.00043561,120]
[330487533,1719497081991,-2311.61,0.00043561,120]
[330487534,1719497082031,-500.0,0.00043561,120]
[330487535,1719497082069,-500.0,0.00043561,120]
[330487536,1719497082108,-500.0,0.00043561,120]
[330487537,1719497082149,-2376.35,0.00043561,120]
[330487538,1719497082189,-814.33,0.00043561,120]
[330487539,1719497082230,-1932.47,0.00043561,120]
[330487540,1719497082271,-500.0,0.00043561,120]
[330487541,1719497082310,-1234.42,0.00043561,120]
[330487542,1719497082350,-723.66,0.00043561,120]
[330487543,1719497082396,-530.92347026,0.00043561,30]
[330487544,1719497082441,-1538.05,0.00043561,120]
[330487545,1719497082484,-500.0,0.00043561,120]
[330487546,1719497082524,-500.0,0.00043561,120]
[330487547,1719497082564,-500.0,0.00043561,120]
[330487548,1719497082605,-859.35,0.00043561,120]
[330487549,1719497082647,-581.3,0.00043561,120]
[330487550,1719497082689,-2834.61,0.00043561,120]
[330487551,1719497082728,-500.0,0.00043561,120]
[330487552,1719497082768,-500.0,0.00043561,120]
[330487553,1719497082807,-555.14,0.00043561,120]
[330487554,1719497082846,-869.52,0.00043561,120]
[330487555,1719497082883,-705.33,0.00043561,120]
[330487556,1719497082922,-500.0,0.00043561,120]
[330487557,1719497082965,-1510.64,0.00043561,120]
[330487558,1719497083002,-910.08,0.00043561,120]
[330487559,1719497083043,-500.0,0.00043561,120]
[330487560,1719497083083,-814.39,0.00043561,120]
[330487561,1719497083121,-1051.69,0.00043561,120]
[330487562,1719497083159,-1494.23,0.00043561,120]
[330487563,1719497083197,-500.0,0.00043561,120]
[330487564,1719497083237,-500.0,0.00043561,120]
[330487565,1719497083275,-634.82,0.00043561,120]
[330487566,1719497083314,-3122.47,0.00043561,120]
[330487567,1719497083352,-500.0,0.00043561,120]
[330487568,1719497083388,-586.70384256,0.00043561,120]
[330487569,1719497083430,-500.0,0.00043561,120]
[330487570,1719497083469,-500.0,0.00043561,120]
[330487571,1719497083510,-500.0,0.00043561,120]
[330487572,1719497083550,-578.71,0.00043561,120]
[330487573,1719497083590,-500.0,0.00043561,120]
[330487574,1719497083631,-8433.88,0.00043561,120]
[330487575,1719497083671,-774.58,0.00043561,120]
[330487576,1719497083712,-501.71,0.00043561,120]
[330487577,1719497083754,-923.3,0.00043561,120]
[330487578,1719497083801,-500.0,0.00043561,120]
[330487579,1719497083840,-532.82,0.00043561,120]
[330487580,1719497083881,-500.0,0.00043561,120]
[330487581,1719497083918,-500.0,0.00043561,120]
[330487582,1719497083958,-1305.0,0.00043561,120]
[330487583,1719497083996,-2465.78,0.00043561,120]
[330487584,1719497084042,-2414.92,0.00043561,120]
[330487585,1719497084085,-500.0,0.00043561,120]
[330487586,1719497084124,-500.0,0.00043561,120]
[330487587,1719497084163,-1240.09,0.00043561,120]
[330487588,1719497084200,-1159.09,0.00043561,120]
[330487589,1719497084239,-500.0,0.00043561,120]
[330487590,1719497084281,-1492.2,0.00043561,120]
[330487591,1719497084319,-2617.64,0.00043561,120]
[330487592,1719497084360,-724.33,0.00043561,120]
[330487593,1719497084402,-1924.12,0.00043561,120]
[330487594,1719497084662,-527.36,0.00043561,120]
[330487595,1719497084701,-1572.43,0.00043561,120]
[330487596,1719497084741,-500.0,0.00043561,120]
[330487597,1719497084779,-1434.09,0.00043561,120]
[330487598,1719497084817,-500.0,0.00043561,120]
[330487599,1719497084857,-1257.13,0.00043561,120]
[330487600,1719497084896,-500.0,0.00043561,120]
[330487601,1719497084940,-1431.43,0.00043561,120]
[330487602,1719497084978,-582.66,0.00043561,120]
[330487603,1719497085019,-579.13,0.00043561,120]
[330487604,1719497085058,-824.41,0.00043561,120]
[330487605,1719497085098,-3119.63,0.00043561,120]
[330487606,1719497085148,-1183.11,0.00043561,120]
[330487607,1719497085188,-1131.1,0.00043561,120]
[330487608,1719497085226,-686.28,0.00043561,120]
[330487609,1719497085264,-1725.11,0.00043561,120]
[330487610,1719497085313,-2007.3,0.00043561,120]
[330487611,1719497085353,-500.0,0.00043561,120]
[330487612,1719497085392,-1666.99,0.00043561,120]
[330487613,1719497085432,-614.57,0.00043561,120]
[330487614,1719497085472,-4896.34,0.00043561,120]
[330487615,1719497085512,-500.0,0.00043561,120]
[330487616,1719497085553,-1234.76,0.00043561,120]
[330487617,1719497085593,-688.7,0.00043561,120]
[330487618,1719497085633,-500.0,0.00043561,120]
[330487619,1719497085671,-1439.48,0.00043561,120]
[330487620,1719497085712,-1595.23,0.00043561,120]
[330487621,1719497085754,-3040.27,0.00043561,120]
[330487622,1719497085793,-1104.17,0.00043561,120]
[330487623,1719497085834,-500.0,0.00043561,120]
[330487624,1719497085873,-500.0,0.00043561,120]
[330487625,1719497085912,-1117.37,0.00043561,120]
[330487626,1719497085952,-498.48115019,0.00043561,120]
[330487627,1719497085992,-1355.36,0.00043561,120]
[330487628,1719497086031,-2031.08,0.00043561,120]
[330487629,1719497086070,-905.26,0.00043561,120]
[330487630,1719497086109,-1054.64,0.00043561,120]
[330487631,1719497086150,-2621.64,0.00043561,120]
[330487632,1719497086189,-518.39,0.00043561,120]
[330487633,1719497086235,-500.0,0.00043561,120]
[330487634,1719497086278,-1009.42,0.00043561,120]
[330487635,1719497086319,-500.0,0.00043561,120]
[330487636,1719497086360,-1179.1,0.00043561,120]
[330487637,1719497086402,-2244.43,0.00043561,120]
[330487638,1719497086443,-500.0,0.00043561,120]
[330487639,1719497086485,-500.0,0.00043561,120]
[330487640,1719497086525,-1464.75,0.00043561,120]
[330487641,1719497086564,-378.54622281,0.00043561,120]
[330487642,1719497086605,-2658.66,0.00043561,120]
[330487643,1719497086646,-500.0,0.00043561,120]
[330487644,1719497086691,-1245.76,0.00043561,120]
[330487645,1719497086733,-500.0,0.00043561,120]
[330487646,1719497086775,-575.88,0.00043561,120]
[330487647,1719497086817,-500.0,0.00043561,120]
[330487648,1719497086857,-977.08,0.00043561,120]
[330487649,1719497086897,-505.51,0.00043561,120]
[330487650,1719497086942,-500.0,0.00043561,120]
[330487651,1719497086981,-2627.28,0.00043561,120]
[330487652,1719497087020,-500.0,0.00043561,120]
[330487653,1719497087059,-500.0,0.00043561,120]
[330487654,1719497087099,-882.32,0.00043561,120]
[330487655,1719497087144,-2000.0,0.00043561,120]
[330487656,1719497087186,-1106.49,0.00043561,120]
[330487657,1719497087226,-500.0,0.00043561,120]
[330487658,1719497087267,-3227.34,0.00043561,120]
[330487659,1719497087307,-500.0,0.00043561,120]
[330487660,1719497087345,-500.0,0.00043561,120]
[330487661,1719497087383,-1394.59,0.00043561,120]
[330487662,1719497087423,-1454.07,0.00043561,120]
[330487663,1719497087464,-829.26,0.00043561,120]
[330487664,1719497087504,-759.29,0.00043561,120]
[330487665,1719497087544,-500.0,0.00043561,120]
[330487666,1719497087584,-500.0,0.00043561,120]
[330487667,1719497087629,-1502.06,0.00043561,120]
[330487668,1719497087671,-1167.85,0.00043561,120]
[330487669,1719497087712,-500.0,0.00043561,120]
[330487670,1719497087757,-2224.1,0.00043561,120]
[330487671,1719497087798,-816.12,0.00043561,120]
[330487672,1719497087837,-2947.18,0.00043561,120]
[330487673,1719497087878,-1515.51,0.00043561,120]
[330487674,1719497087918,-1160.97,0.00043561,120]
[330487675,1719497087962,-500.0,0.00043561,120]
[330487676,1719497088004,-2519.83,0.00043561,120]
[330487677,1719497088046,-500.0,0.00043561,120]
[330487678,1719497088088,-500.0,0.00043561,120]
[330487679,1719497088130,-500.0,0.00043561,120]
[330487680,1719497088172,-500.0,0.00043561,120]
[330487681,1719497088211,-500.0,0.00043561,120]
[330487682,1719497088249,-540.12,0.00043561,120]
[330487683,1719497088288,-953.31,0.00043561,120]
[330487684,1719497088327,-1273.45,0.00043561,120]
[330487685,1719497088367,-765.5,0.00043561,120]
[330487686,1719497088406,-500.0,0.00043561,120]
[330487687,1719497088446,-500.0,0.00043561,120]
[330487688,1719497088487,-881.05,0.00043561,120]
[330487689,1719497088529,-1573.82,0.00043561,120]
[330487690,1719497088571,-2064.18,0.00043561,120]
[330487691,1719497088613,-500.0,0.00043561,120]
[330487692,1719497088654,-1824.26,0.00043561,120]
[330487693,1719497088695,-500.0,0.00043561,120]
[330487694,1719497088736,-2496.03,0.00043561,120]
[330487695,1719497088778,-500.0,0.00043561,120]
[330487696,1719497088819,-2744.32,0.00043561,120]
[330487697,1719497088858,-500.0,0.00043561,120]
[330487698,1719497089250,-500.0,0.00043561,120]
[330487699,1719497089331,-637.61,0.00043561,120]
[330487700,1719497089370,-517.41825039,0.00043561,120]
[330487701,1719497089411,-2337.39,0.00043561,120]
[330487702,1719497089451,-814.64,0.00043561,120]
[330487703,1719497089489,-1150.0,0.00043561,120]
[330487704,1719497089529,-500.0,0.00043561,120]
[330487705,1719497089567,-1839.45,0.00043561,120]
[330487706,1719497089605,-500.0,0.00043561,120]
[330487707,1719497089645,-2748.43,0.00043561,120]
[330487708,1719497089686,-1545.12,0.00043561,120]
[330487709,1719497089726,-1716.97,0.00043561,120]
[330487710,1719497089768,-501.5,0.00043561,120]
[330487711,1719497089808,-556.1,0.00043561,120]
[330487712,1719497089846,-3849.88,0.00043561,120]
[330487713,1719497089885,-579.43,0.00043561,120]
[330487714,1719497089923,-500.0,0.00043561,120]
[330487715,1719497089966,-500.0,0.00043561,120]
[330487716,1719497090008,-1088.54,0.00043561,120]
[330487717,1719497090044,-500.0,0.00043561,120]
[330487718,1719497090081,-500.0,0.00043561,120]
[330487719,1719497090121,-500.0,0.00043561,120]
[330487720,1719497090162,-2418.2,0.00043561,120]
[330487721,1719497090200,-500.0,0.00043561,120]
[330487722,1719497090239,-2054.01,0.00043561,120]
[330487723,1719497090277,-1706.46,0.00043561,120]